[Event "Early-Titled-Tuesday-Blitz-April-23-2024"]
[Site "Chess.com"]
[Date "2024.04.23"]
[Round "1"]
[White "lioni26"]
[Black "Shankland"]
[Result "1-0"]
[WhiteElo "2562"]
[BlackElo "3052"]
[TimeControl "180+1"]
[EndTime "8:06:49 PDT"]
[Termination "lioni26 won by checkmate"]

1. e4 {[%clk 0:03:00.9]} 1... c5 {[%clk 0:02:59.1]} 2. Nc3 {[%clk 0:02:51.6]}
2... Nc6 {[%clk 0:02:55.5]} 3. f4 {[%clk 0:02:50.9]} 3... g6 {[%clk 0:02:54.5]}
4. Nf3 {[%clk 0:02:51.1]} 4... Bg7 {[%clk 0:02:54]} 5. a3 {[%clk 0:02:48.8]}
5... b6 {[%clk 0:02:52.1]} 6. Bc4 {[%clk 0:02:47.3]} 6... e6 {[%clk 0:02:51.1]}
7. f5 {[%clk 0:02:43.5]} 7... Nge7 {[%clk 0:02:49]} 8. fxe6 {[%clk 0:02:32]}
8... dxe6 {[%clk 0:02:48.5]} 9. d3 {[%clk 0:02:29.9]} 9... h6 {[%clk 0:02:45.4]}
10. O-O {[%clk 0:02:29.7]} 10... g5 {[%clk 0:02:40.5]} 11. Kh1 {[%clk 0:02:26]}
11... Ng6 {[%clk 0:02:39.2]} 12. Qe1 {[%clk 0:02:22.8]} 12... g4 {[%clk
0:02:29.1]} 13. Ng1 {[%clk 0:02:19.3]} 13... h5 {[%clk 0:02:29.2]} 14. Nge2
{[%clk 0:02:18.8]} 14... Bb7 {[%clk 0:02:24]} 15. Nf4 {[%clk 0:02:17.1]} 15...
Nxf4 {[%clk 0:02:21.9]} 16. Bxf4 {[%clk 0:02:18]} 16... Qe7 {[%clk 0:02:17.5]}
17. Nb5 {[%clk 0:02:03.9]} 17... Ne5 {[%clk 0:02:11]} 18. Qc3 {[%clk 0:01:39.6]}
18... f6 {[%clk 0:01:57.8]} 19. Bxe5 {[%clk 0:01:38.3]} 19... fxe5 {[%clk
0:01:58.1]} 20. Qb3 {[%clk 0:01:38.8]} 20... Rh6 {[%clk 0:01:53.4]} 21. a4
{[%clk 0:01:34]} 21... a6 {[%clk 0:01:42.6]} 22. Nc3 {[%clk 0:01:05.6]} 22...
Qd6 {[%clk 0:01:39.7]} 23. Rf2 {[%clk 0:00:48.5]} 23... Rd8 {[%clk 0:01:34.8]}
24. Raf1 {[%clk 0:00:48.1]} 24... Rd7 {[%clk 0:01:35.2]} 25. a5 {[%clk
0:00:44.8]} 25... b5 {[%clk 0:01:33.4]} 26. Nxb5 {[%clk 0:00:43.8]} 26... axb5
{[%clk 0:01:33.1]} 27. Bxb5 {[%clk 0:00:44.3]} 27... Bc6 {[%clk 0:01:29.1]} 28.
a6 {[%clk 0:00:33.1]} 28... Rh8 {[%clk 0:00:27.8]} 29. a7 {[%clk 0:00:25.2]}
29... Kd8 {[%clk 0:00:15.9]} 30. Bxc6 {[%clk 0:00:19.2]} 30... Qxc6 {[%clk
0:00:16.2]} 31. Qb8+ {[%clk 0:00:18.7]} 31... Ke7 {[%clk 0:00:16.8]} 32. Rf7#
{[%clk 0:00:18]} 1-0

[Event "Early-Titled-Tuesday-Blitz-April-23-2024"]
[Site "Chess.com"]
[Date "2024.04.23"]
[Round "1"]
[White "Fantastic_Power"]
[Black "KetiTsatsalashvili"]
[Result "1-0"]
[WhiteElo "2737"]
[BlackElo "2419"]
[TimeControl "180+1"]
[EndTime "8:06:49 PDT"]
[Termination "Fantastic_Power won on time"]

1. e4 {[%clk 0:02:46.7]} 1... c5 {[%clk 0:02:56.4]} 2. Nf3 {[%clk 0:02:46.1]}
2... d6 {[%clk 0:02:46.5]} 3. Nc3 {[%clk 0:02:45.3]} 3... Nc6 {[%clk 0:02:45]}
4. d4 {[%clk 0:02:45.2]} 4... cxd4 {[%clk 0:02:43.4]} 5. Nxd4 {[%clk 0:02:46.1]}
5... Nf6 {[%clk 0:02:43.9]} 6. Bg5 {[%clk 0:02:45.7]} 6... a6 {[%clk 0:02:43.5]}
7. Qd2 {[%clk 0:02:44]} 7... h6 {[%clk 0:02:36.6]} 8. Bxf6 {[%clk 0:02:43.2]}
8... gxf6 {[%clk 0:02:36.6]} 9. O-O-O {[%clk 0:02:43.5]} 9... h5 {[%clk
0:02:33.1]} 10. Kb1 {[%clk 0:02:41.1]} 10... Bh6 {[%clk 0:02:33.3]} 11. Qd3
{[%clk 0:02:33.8]} 11... Ne5 {[%clk 0:02:26.3]} 12. Qg3 {[%clk 0:02:33.2]} 12...
Bd7 {[%clk 0:02:00.9]} 13. Be2 {[%clk 0:02:24.3]} 13... h4 {[%clk 0:01:44.1]}
14. Qxh4 {[%clk 0:02:20.7]} 14... Rc8 {[%clk 0:01:37.8]} 15. Qg3 {[%clk
0:02:17.6]} 15... Kf8 {[%clk 0:01:24.3]} 16. f4 {[%clk 0:02:14.5]} 16... Nc4
{[%clk 0:01:05.1]} 17. Bxc4 {[%clk 0:02:13.8]} 17... Rxc4 {[%clk 0:01:06]} 18.
e5 {[%clk 0:01:42.7]} 18... fxe5 {[%clk 0:00:49.9]} 19. fxe5 {[%clk 0:01:43.6]}
19... dxe5 {[%clk 0:00:49.6]} 20. Qxe5 {[%clk 0:01:42.1]} 20... Bg7 {[%clk
0:00:49.9]} 21. Qd5 {[%clk 0:01:37.6]} 21... Qc8 {[%clk 0:00:38.6]} 22. Rhf1
{[%clk 0:01:34.5]} 22... Bf6 {[%clk 0:00:22.6]} 23. Ne4 {[%clk 0:01:14.9]} 23...
Rh6 {[%clk 0:00:13.5]} 24. Nxf6 {[%clk 0:01:13.4]} 24... Rxf6 {[%clk 0:00:13.6]}
25. Rxf6 {[%clk 0:01:11.8]} 25... exf6 {[%clk 0:00:14.5]} 26. Qd6+ {[%clk
0:01:11.7]} 26... Kg7 {[%clk 0:00:14.5]} 27. Rd3 {[%clk 0:01:08.2]} 27... Bg4
{[%clk 0:00:06.9]} 28. h3 {[%clk 0:01:00.9]} 28... Qe8 {[%clk 0:00:06.6]} 29. b3
{[%clk 0:00:57]} 29... Qe1+ {[%clk 0:00:06.7]} 30. Kb2 {[%clk 0:00:57.6]} 30...
Rc8 {[%clk 0:00:02.7]} 31. hxg4 {[%clk 0:00:57.3]} 31... Re8 {[%clk 0:00:02.7]}
32. Nf5+ {[%clk 0:00:57.4]} 32... Kg6 {[%clk 0:00:03.3]} 33. Qd4 {[%clk
0:00:50.1]} 33... Re4 {[%clk 0:00:02]} 34. Qd8 {[%clk 0:00:42.2]} 34... Re8
{[%clk 0:00:02.2]} 35. Qd7 {[%clk 0:00:41.7]} 35... Qe5+ {[%clk 0:00:01.8]} 36.
Qd4 {[%clk 0:00:41.9]} 1-0

[Event "Early-Titled-Tuesday-Blitz-April-23-2024"]
[Site "Chess.com"]
[Date "2024.04.23"]
[Round "1"]
[White "Silvederione"]
[Black "Keranke"]
[Result "0-1"]
[WhiteElo "2474"]
[BlackElo "2834"]
[TimeControl "180+1"]
[EndTime "8:06:50 PDT"]
[Termination "Keranke won by resignation"]

1. d4 {[%clk 0:03:00.9]} 1... e6 {[%clk 0:02:56.7]} 2. Nc3 {[%clk 0:03:01.1]}
2... b6 {[%clk 0:02:57.2]} 3. Bf4 {[%clk 0:03:00.6]} 3... Bb7 {[%clk 0:02:57.3]}
4. e4 {[%clk 0:03:01]} 4... Nf6 {[%clk 0:02:56.3]} 5. Bd3 {[%clk 0:03:01.3]}
5... c5 {[%clk 0:02:54.5]} 6. dxc5 {[%clk 0:03:00.8]} 6... Bxc5 {[%clk
0:02:54.4]} 7. Nf3 {[%clk 0:03:00.9]} 7... Bb4 {[%clk 0:02:49.1]} 8. Qe2 {[%clk
0:02:57.5]} 8... Nc6 {[%clk 0:02:46.2]} 9. O-O {[%clk 0:02:54.6]} 9... Bxc3
{[%clk 0:02:46.4]} 10. bxc3 {[%clk 0:02:54.4]} 10... d6 {[%clk 0:02:46.7]} 11.
Rfd1 {[%clk 0:02:51.5]} 11... e5 {[%clk 0:02:45.2]} 12. Bc1 {[%clk 0:02:38.2]}
12... Nd7 {[%clk 0:02:39.3]} 13. Bb5 {[%clk 0:02:29.6]} 13... Qe7 {[%clk
0:02:35.1]} 14. Qd3 {[%clk 0:02:20.9]} 14... a6 {[%clk 0:02:34.7]} 15. Ba4
{[%clk 0:01:44.4]} 15... b5 {[%clk 0:02:24.6]} 16. Bb3 {[%clk 0:01:44.2]} 16...
Nc5 {[%clk 0:02:24.9]} 17. Qxd6 {[%clk 0:01:35.4]} 17... Qxd6 {[%clk 0:02:25.8]}
18. Rxd6 {[%clk 0:01:35.5]} 18... Nxe4 {[%clk 0:02:26.4]} 19. Rxc6 {[%clk
0:01:13.2]} 19... Bxc6 {[%clk 0:02:25.9]} 20. Nxe5 {[%clk 0:01:13.8]} 20... Bb7
{[%clk 0:01:59.2]} 21. Bxf7+ {[%clk 0:00:56.2]} 21... Ke7 {[%clk 0:01:59.5]} 22.
f4 {[%clk 0:00:36.9]} 22... Rhd8 {[%clk 0:01:45.8]} 23. Ba3+ {[%clk 0:00:26]}
23... Kf6 {[%clk 0:01:45.6]} 24. Bh5 {[%clk 0:00:18.4]} 24... g6 {[%clk
0:01:02.1]} 25. Bf3 {[%clk 0:00:16.9]} 25... Nd6 {[%clk 0:01:01.8]} 26. Bc5
{[%clk 0:00:10.8]} 26... Bxf3 {[%clk 0:01:00.6]} 27. Nxf3 {[%clk 0:00:10.5]}
27... Nf5 {[%clk 0:00:58.4]} 28. g4 {[%clk 0:00:10.1]} 28... Rac8 {[%clk
0:00:57.7]} 29. Bb6 {[%clk 0:00:10.3]} 29... Rd6 {[%clk 0:00:57.8]} 30. Bf2
{[%clk 0:00:10.2]} 30... Rxc3 {[%clk 0:00:50.8]} 31. Kg2 {[%clk 0:00:10.2]}
31... Ne3+ {[%clk 0:00:50.7]} 32. Kg3 {[%clk 0:00:10.2]} 32... Nxc2 {[%clk
0:00:48.4]} 33. Rc1 {[%clk 0:00:09.5]} 33... Rdd3 {[%clk 0:00:48.6]} 34. g5+
{[%clk 0:00:05.9]} 34... Kf5 {[%clk 0:00:46.2]} 35. Kg2 {[%clk 0:00:05.5]} 35...
Rxf3 {[%clk 0:00:46.1]} 36. Rxc2 {[%clk 0:00:06.1]} 36... Rxc2 {[%clk
0:00:45.8]} 37. Kxf3 {[%clk 0:00:07]} 37... Rxa2 {[%clk 0:00:46.4]} 38. Be3
{[%clk 0:00:07.3]} 38... b4 {[%clk 0:00:45.8]} 39. h4 {[%clk 0:00:07.6]} 39...
b3 {[%clk 0:00:46.2]} 0-1

[Event "Early-Titled-Tuesday-Blitz-April-23-2024"]
[Site "Chess.com"]
[Date "2024.04.23"]
[Round "1"]
[White "NovakCabarkapa"]
[Black "szachmistrz2500"]
[Result "1-0"]
[WhiteElo "2778"]
[BlackElo "2447"]
[TimeControl "180+1"]
[EndTime "8:06:50 PDT"]
[Termination "NovakCabarkapa won on time"]

1. d4 {[%clk 0:03:00.4]} 1... e6 {[%clk 0:02:57.8]} 2. Nc3 {[%clk 0:03:00]} 2...
d5 {[%clk 0:02:57.1]} 3. e4 {[%clk 0:02:59.7]} 3... dxe4 {[%clk 0:02:57.1]} 4.
Nxe4 {[%clk 0:03:00.6]} 4... Bd7 {[%clk 0:02:57.3]} 5. Nf3 {[%clk 0:02:59.9]}
5... Bc6 {[%clk 0:02:57.2]} 6. Neg5 {[%clk 0:02:59]} 6... Nd7 {[%clk 0:02:44.8]}
7. Nxf7 {[%clk 0:02:54.3]} 7... Kxf7 {[%clk 0:02:42.3]} 8. Ng5+ {[%clk
0:02:54.8]} 8... Ke8 {[%clk 0:02:41.3]} 9. Bd3 {[%clk 0:02:47.8]} 9... g6 {[%clk
0:02:23.1]} 10. O-O {[%clk 0:02:42.3]} 10... Qf6 {[%clk 0:02:06.7]} 11. Re1
{[%clk 0:02:21.2]} 11... Be7 {[%clk 0:02:03.6]} 12. Nxe6 {[%clk 0:02:02.3]}
12... Rc8 {[%clk 0:02:02]} 13. c4 {[%clk 0:02:01.2]} 13... Nf8 {[%clk 0:01:53]}
14. Bg5 {[%clk 0:01:48.3]} 14... Qf7 {[%clk 0:01:51.1]} 15. d5 {[%clk
0:01:48.2]} 15... Bd7 {[%clk 0:01:50.6]} 16. Bxe7 {[%clk 0:01:42.4]} 16... Nxe7
{[%clk 0:01:49.4]} 17. Nxc7+ {[%clk 0:01:37.5]} 17... Rxc7 {[%clk 0:01:31.8]}
18. d6 {[%clk 0:01:37.2]} 18... Kd8 {[%clk 0:01:32.1]} 19. Rxe7 {[%clk
0:01:32.7]} 19... Qf6 {[%clk 0:01:27.2]} 20. dxc7+ {[%clk 0:01:09.6]} 20... Kxe7
{[%clk 0:01:24.2]} 21. Qb3 {[%clk 0:01:09.7]} 21... Ne6 {[%clk 0:01:17.6]} 22.
Re1 {[%clk 0:01:07]} 22... Rf8 {[%clk 0:00:24.5]} 23. Re2 {[%clk 0:01:01.5]}
23... Qd4 {[%clk 0:00:19.7]} 24. Re3 {[%clk 0:00:52.6]} 24... b5 {[%clk
0:00:15]} 25. cxb5 {[%clk 0:00:49]} 25... Kd6 {[%clk 0:00:14.3]} 26. Bf1 {[%clk
0:00:43.2]} 26... Nc5 {[%clk 0:00:13.2]} 27. Qa3 {[%clk 0:00:37.7]} 27... Kxc7
{[%clk 0:00:12.3]} 28. Qxa7+ {[%clk 0:00:36.5]} 28... Kd6 {[%clk 0:00:12.2]} 29.
Rd3 {[%clk 0:00:33.7]} 29... Qxd3 {[%clk 0:00:04.9]} 30. Bxd3 {[%clk 0:00:33.3]}
30... Nxd3 {[%clk 0:00:05.2]} 31. Qd4+ {[%clk 0:00:33.2]} 31... Kc7 {[%clk
0:00:04.2]} 32. Qxd3 {[%clk 0:00:32.8]} 1-0

[Event "Early-Titled-Tuesday-Blitz-April-23-2024"]
[Site "Chess.com"]
[Date "2024.04.23"]
[Round "1"]
[White "RebelJohnny"]
[Black "MikeWizard"]
[Result "0-1"]
[WhiteElo "2588"]
[BlackElo "2188"]
[TimeControl "180+1"]
[EndTime "8:06:50 PDT"]
[Termination "MikeWizard won on time"]

1. e4 {[%clk 0:02:58.3]} 1... d6 {[%clk 0:02:58.1]} 2. d4 {[%clk 0:02:52.8]}
2... Nf6 {[%clk 0:02:57.8]} 3. Nc3 {[%clk 0:02:53.2]} 3... Nbd7 {[%clk
0:02:57.4]} 4. Nf3 {[%clk 0:02:53.3]} 4... e5 {[%clk 0:02:57.4]} 5. Bc4 {[%clk
0:02:53.5]} 5... Be7 {[%clk 0:02:57.5]} 6. a4 {[%clk 0:02:52.7]} 6... c6 {[%clk
0:02:57.4]} 7. O-O {[%clk 0:02:51.5]} 7... Qc7 {[%clk 0:02:57.3]} 8. h3 {[%clk
0:02:48.8]} 8... h6 {[%clk 0:02:56.8]} 9. Be3 {[%clk 0:02:41.7]} 9... g5 {[%clk
0:02:55.9]} 10. Qb1 {[%clk 0:02:38.9]} 10... Nf8 {[%clk 0:02:49.6]} 11. Qa2
{[%clk 0:02:38.9]} 11... Be6 {[%clk 0:02:49.3]} 12. a5 {[%clk 0:02:20.4]} 12...
Bxc4 {[%clk 0:02:43.6]} 13. Qxc4 {[%clk 0:02:21.3]} 13... Ne6 {[%clk 0:02:42.1]}
14. dxe5 {[%clk 0:01:34.4]} 14... dxe5 {[%clk 0:02:40.2]} 15. Ne2 {[%clk
0:01:28.4]} 15... Nh5 {[%clk 0:02:21]} 16. Rfd1 {[%clk 0:01:08]} 16... O-O
{[%clk 0:02:05.8]} 17. Qc3 {[%clk 0:01:04.6]} 17... Bf6 {[%clk 0:02:02.2]} 18.
g4 {[%clk 0:00:57.5]} 18... Nhf4 {[%clk 0:02:01.2]} 19. Bxf4 {[%clk 0:00:56.9]}
19... gxf4 {[%clk 0:01:58.8]} 20. Nc1 {[%clk 0:00:40.1]} 20... Rad8 {[%clk
0:01:52.6]} 21. Nd3 {[%clk 0:00:36.1]} 21... Nd4 {[%clk 0:01:51]} 22. Nxd4
{[%clk 0:00:29.4]} 22... Rxd4 {[%clk 0:01:41.5]} 23. Nxf4 {[%clk 0:00:29.6]}
23... Rfd8 {[%clk 0:01:27.8]} 24. Rxd4 {[%clk 0:00:21.5]} 24... exd4 {[%clk
0:01:27.8]} 25. Qf3 {[%clk 0:00:19.4]} 25... Bg5 {[%clk 0:01:18.2]} 26. Nd3
{[%clk 0:00:19.8]} 26... c5 {[%clk 0:01:13.7]} 27. b3 {[%clk 0:00:19.7]} 27...
c4 {[%clk 0:01:08.9]} 28. bxc4 {[%clk 0:00:20.6]} 28... Qxc4 {[%clk 0:01:08.7]}
29. Rb1 {[%clk 0:00:21.3]} 29... Rd7 {[%clk 0:01:02.2]} 30. Kg2 {[%clk
0:00:15.6]} 30... Qxc2 {[%clk 0:01:00.1]} 31. Rb5 {[%clk 0:00:14.1]} 31... Rd6
{[%clk 0:00:42.9]} 32. Rxb7 {[%clk 0:00:13.1]} 32... Rf6 {[%clk 0:00:42.4]} 33.
Qg3 {[%clk 0:00:12.1]} 33... Be3 {[%clk 0:00:37.9]} 34. Kg1 {[%clk 0:00:05]}
34... Qxd3 {[%clk 0:00:35.9]} 0-1

[Event "Early-Titled-Tuesday-Blitz-April-23-2024"]
[Site "Chess.com"]
[Date "2024.04.23"]
[Round "1"]
[White "Korchmar_Vasiliy"]
[Black "ljuks68"]
[Result "1-0"]
[WhiteElo "2713"]
[BlackElo "2395"]
[TimeControl "180+1"]
[EndTime "8:06:51 PDT"]
[Termination "Korchmar_Vasiliy won on time"]

1. e4 {[%clk 0:02:57.5]} 1... e6 {[%clk 0:03:00.1]} 2. d4 {[%clk 0:02:57.2]}
2... d5 {[%clk 0:03:00.7]} 3. e5 {[%clk 0:02:57.3]} 3... c5 {[%clk 0:03:00.8]}
4. c3 {[%clk 0:02:57.5]} 4... Nc6 {[%clk 0:03:01.3]} 5. Nf3 {[%clk 0:02:57.9]}
5... Qb6 {[%clk 0:03:01.7]} 6. Be2 {[%clk 0:02:57.2]} 6... cxd4 {[%clk
0:03:01.1]} 7. cxd4 {[%clk 0:02:57.3]} 7... Nh6 {[%clk 0:03:01.7]} 8. Na3 {[%clk
0:02:57.8]} 8... Bb4+ {[%clk 0:02:56.4]} 9. Bd2 {[%clk 0:02:47.9]} 9... Bxa3
{[%clk 0:02:56]} 10. bxa3 {[%clk 0:02:48.6]} 10... Nf5 {[%clk 0:02:56.3]} 11.
Rb1 {[%clk 0:02:45]} 11... Qc7 {[%clk 0:02:53.6]} 12. O-O {[%clk 0:02:41.2]}
12... Nfxd4 {[%clk 0:02:51.6]} 13. Nxd4 {[%clk 0:02:40.5]} 13... Nxd4 {[%clk
0:02:52]} 14. Qa4+ {[%clk 0:02:12.8]} 14... Nc6 {[%clk 0:02:51]} 15. Bb4 {[%clk
0:02:10.3]} 15... Qxe5 {[%clk 0:02:44.8]} 16. Rfe1 {[%clk 0:02:07.8]} 16... Qf4
{[%clk 0:02:12.2]} 17. g3 {[%clk 0:01:57.8]} 17... Qc7 {[%clk 0:02:00.3]} 18.
Bf3 {[%clk 0:01:51.8]} 18... Bd7 {[%clk 0:01:22.3]} 19. Bxd5 {[%clk 0:01:49.4]}
19... Ne7 {[%clk 0:01:11.6]} 20. Qb3 {[%clk 0:01:41.3]} 20... Nxd5 {[%clk
0:01:11.2]} 21. Qxd5 {[%clk 0:01:41.2]} 21... Bc6 {[%clk 0:01:08.5]} 22. Qg5
{[%clk 0:01:35.1]} 22... Rg8 {[%clk 0:00:38.6]} 23. Rbd1 {[%clk 0:01:30.8]}
23... h6 {[%clk 0:00:35.8]} 24. Qh5 {[%clk 0:01:27.3]} 24... Bd7 {[%clk
0:00:29.2]} 25. Qh4 {[%clk 0:00:45]} 25... g5 {[%clk 0:00:20.8]} 26. Qxh6 {[%clk
0:00:42.4]} 26... O-O-O {[%clk 0:00:20.7]} 27. Be7 {[%clk 0:00:30.1]} 27... Rde8
{[%clk 0:00:12.8]} 28. Bd6 {[%clk 0:00:29.6]} 28... Qa5 {[%clk 0:00:04.1]} 29.
Qf6 {[%clk 0:00:29.3]} 29... Bc6 {[%clk 0:00:03.7]} 30. Qxf7 {[%clk 0:00:27.7]}
30... b6 {[%clk 0:00:01.8]} 31. Rxe6 {[%clk 0:00:27.3]} 1-0

[Event "Early-Titled-Tuesday-Blitz-April-23-2024"]
[Site "Chess.com"]
[Date "2024.04.23"]
[Round "1"]
[White "dianamirza"]
[Black "Mackster23"]
[Result "0-1"]
[WhiteElo "1969"]
[BlackElo "2567"]
[TimeControl "180+1"]
[EndTime "8:06:54 PDT"]
[Termination "Mackster23 won on time"]

1. e4 {[%clk 0:02:49.8]} 1... c6 {[%clk 0:02:54.5]} 2. Nf3 {[%clk 0:02:47.6]}
2... d5 {[%clk 0:02:43]} 3. e5 {[%clk 0:02:27.1]} 3... c5 {[%clk 0:02:42.2]} 4.
d4 {[%clk 0:02:25.8]} 4... Nc6 {[%clk 0:02:37.8]} 5. c3 {[%clk 0:02:21.6]} 5...
cxd4 {[%clk 0:02:37]} 6. cxd4 {[%clk 0:02:20]} 6... Bg4 {[%clk 0:02:37.6]} 7.
Be3 {[%clk 0:02:08.5]} 7... Nh6 {[%clk 0:02:23.4]} 8. h3 {[%clk 0:01:56]} 8...
Bxf3 {[%clk 0:02:19]} 9. Qxf3 {[%clk 0:01:55.2]} 9... e6 {[%clk 0:02:15.9]} 10.
Nc3 {[%clk 0:01:54.8]} 10... Nf5 {[%clk 0:02:14.8]} 11. Bb5 {[%clk 0:01:52.5]}
11... Rc8 {[%clk 0:02:13.5]} 12. O-O {[%clk 0:01:50.5]} 12... a6 {[%clk
0:02:11.5]} 13. Bxc6+ {[%clk 0:01:49.4]} 13... Rxc6 {[%clk 0:02:12.4]} 14. Rac1
{[%clk 0:01:48.6]} 14... Be7 {[%clk 0:02:03.4]} 15. Ne2 {[%clk 0:01:48.3]} 15...
Rxc1 {[%clk 0:01:58.2]} 16. Rxc1 {[%clk 0:01:47.7]} 16... O-O {[%clk 0:01:58.9]}
17. Ng3 {[%clk 0:01:46.7]} 17... Nxg3 {[%clk 0:01:53.7]} 18. Qxg3 {[%clk
0:01:47.6]} 18... Re8 {[%clk 0:01:40.9]} 19. Bh6 {[%clk 0:01:40.8]} 19... Bf8
{[%clk 0:01:40.5]} 20. Bg5 {[%clk 0:01:40.9]} 20... Qb6 {[%clk 0:01:37.2]} 21.
Qc3 {[%clk 0:01:38.1]} 21... a5 {[%clk 0:01:23.8]} 22. Be3 {[%clk 0:01:04.8]}
22... a4 {[%clk 0:01:18.4]} 23. b3 {[%clk 0:01:03.6]} 23... Ra8 {[%clk
0:01:12.4]} 24. Qc7 {[%clk 0:00:52.9]} 24... Qb5 {[%clk 0:01:00.4]} 25. bxa4
{[%clk 0:00:41.7]} 25... Rxa4 {[%clk 0:00:59.6]} 26. Qd8 {[%clk 0:00:35.6]}
26... Rc4 {[%clk 0:00:44.6]} 27. Rxc4 {[%clk 0:00:09.7]} 27... Qxc4 {[%clk
0:00:45.5]} 28. a3 {[%clk 0:00:07.2]} 28... h6 {[%clk 0:00:43.7]} 29. g4 {[%clk
0:00:04.8]} 29... Qa4 {[%clk 0:00:36.5]} 30. g5 {[%clk 0:00:03.1]} 30... hxg5
{[%clk 0:00:33.9]} 31. Bxg5 {[%clk 0:00:03.2]} 31... Qxa3 {[%clk 0:00:33.2]} 32.
Qb8 {[%clk 0:00:02.8]} 32... Qb4 {[%clk 0:00:32]} 33. Bd8 {[%clk 0:00:01.7]}
33... Kh7 {[%clk 0:00:26.7]} 0-1

[Event "Early-Titled-Tuesday-Blitz-April-23-2024"]
[Site "Chess.com"]
[Date "2024.04.23"]
[Round "1"]
[White "DonkyDonkyDonkey"]
[Black "MrVenky"]
[Result "1-0"]
[WhiteElo "2941"]
[BlackElo "2530"]
[TimeControl "180+1"]
[EndTime "8:06:55 PDT"]
[Termination "DonkyDonkyDonkey won by resignation"]

1. e4 {[%clk 0:03:00.9]} 1... e5 {[%clk 0:02:59.4]} 2. Nf3 {[%clk 0:03:01.1]}
2... Nc6 {[%clk 0:02:59.2]} 3. Nc3 {[%clk 0:02:59.8]} 3... Nf6 {[%clk
0:02:57.6]} 4. h3 {[%clk 0:02:59.8]} 4... g6 {[%clk 0:02:52.2]} 5. Bc4 {[%clk
0:02:58.6]} 5... Bg7 {[%clk 0:02:51.3]} 6. d3 {[%clk 0:02:59.1]} 6... d6 {[%clk
0:02:47.6]} 7. a4 {[%clk 0:02:59.1]} 7... h6 {[%clk 0:02:46.5]} 8. O-O {[%clk
0:02:59.3]} 8... O-O {[%clk 0:02:24.8]} 9. Be3 {[%clk 0:02:57.8]} 9... Kh7
{[%clk 0:02:23.4]} 10. Qd2 {[%clk 0:02:52.5]} 10... Na5 {[%clk 0:02:20.1]} 11.
Ba2 {[%clk 0:02:51.9]} 11... c5 {[%clk 0:02:20.3]} 12. Nh2 {[%clk 0:02:49.6]}
12... Nc6 {[%clk 0:02:17.6]} 13. f4 {[%clk 0:02:48.8]} 13... exf4 {[%clk
0:02:17.5]} 14. Bxf4 {[%clk 0:02:49.7]} 14... Nh5 {[%clk 0:02:17.4]} 15. Be3
{[%clk 0:02:47.7]} 15... Ne5 {[%clk 0:02:08.9]} 16. Nd5 {[%clk 0:02:24.1]} 16...
f5 {[%clk 0:01:50.7]} 17. exf5 {[%clk 0:02:20.3]} 17... gxf5 {[%clk 0:01:50.6]}
18. Nf4 {[%clk 0:02:16.8]} 18... Nxf4 {[%clk 0:01:44.8]} 19. Bxf4 {[%clk
0:02:17.7]} 19... Ng6 {[%clk 0:01:45.3]} 20. c3 {[%clk 0:02:15]} 20... Bd7
{[%clk 0:01:36.7]} 21. Bxd6 {[%clk 0:02:10.6]} 21... Rf6 {[%clk 0:01:33.5]} 22.
Bxc5 {[%clk 0:02:08.1]} 22... Bxa4 {[%clk 0:01:33.6]} 23. Bd4 {[%clk 0:02:05]}
23... Rf8 {[%clk 0:01:32.6]} 24. Bxg7 {[%clk 0:02:00.1]} 24... Kxg7 {[%clk
0:01:32.8]} 25. Nf3 {[%clk 0:02:00.1]} 25... f4 {[%clk 0:01:27.4]} 26. Nd4
{[%clk 0:01:57.7]} 26... Kh7 {[%clk 0:01:24.5]} 27. Ne6 {[%clk 0:01:53.3]} 27...
Qb6+ {[%clk 0:01:24.5]} 28. Qf2 {[%clk 0:01:53.6]} 28... Qxf2+ {[%clk
0:01:22.9]} 29. Rxf2 {[%clk 0:01:54.5]} 29... Rf6 {[%clk 0:01:23.1]} 30. Bd5
{[%clk 0:01:49.2]} 30... Bc6 {[%clk 0:01:21.2]} 31. Bxc6 {[%clk 0:01:47.8]}
31... bxc6 {[%clk 0:01:21.4]} 32. Nc5 {[%clk 0:01:48.5]} 32... h5 {[%clk
0:01:18.8]} 33. d4 {[%clk 0:01:46.1]} 33... Nh4 {[%clk 0:01:16.5]} 34. Kh2
{[%clk 0:01:44.4]} 34... Rg8 {[%clk 0:01:16.1]} 35. Rxa7+ {[%clk 0:01:44.1]}
35... Kh6 {[%clk 0:01:16.3]} 36. Re7 {[%clk 0:01:35.1]} 36... Rgg6 {[%clk
0:01:07.3]} 37. Nd3 {[%clk 0:01:29.3]} 37... f3 {[%clk 0:01:02.3]} 38. g3 {[%clk
0:01:07.5]} 38... Nf5 {[%clk 0:01:02.2]} 39. Re5 {[%clk 0:01:05.5]} 39... Nxg3
{[%clk 0:01:01.2]} 40. Ne1 {[%clk 0:00:59.8]} 40... Rf7 {[%clk 0:00:44.4]} 41.
Nxf3 {[%clk 0:00:57.1]} 41... h4 {[%clk 0:00:39.3]} 42. Re8 {[%clk 0:00:47.6]}
42... Rgf6 {[%clk 0:00:38.7]} 43. Rh8+ {[%clk 0:00:42.4]} 43... Kg7 {[%clk
0:00:37.3]} 44. Rxh4 {[%clk 0:00:42.6]} 1-0